Cogmind - Beta 13 @@@ ROGUE MODE // 2024.04.14 @ 23:31:50 Player: Person Guy Result: Smashed by cave-in Performance ------------- Evolutions (1) 500 Regions Visited (4) 800 Robots Destroyed (57) 285 Value Destroyed (1250) 1250 Prototype IDs (10) 200 Alien Tech Used (0) 0 Bonus (232) 232 TOTAL SCORE: 3267 Bonus ------- Follower Combat Kills 232 Cogmind --------- Core Integrity 0/400 Matter 6/300 Energy 77/100 System Corruption 0% Temperature Cool (0) Movement Core (550) Ox10 Location -9/Mines Parts ------- > --- POWER (1) -------- (None) > --- PROPULSION (2) --- (None) > --- UTILITY (3) ------ Heat Sink Large Storage Unit > --- WEAPON (3) ------- Flak Cannon Flak Cannon > --- INVENTORY (15) --- Light Treads Heat Sink Large Storage Unit Hardened Light Armor Plating Hacking Suite Hacking Suite Authchip [R/NC] Authchip [R/Combat] Splice Drone Bay Improved Light Cannon Flak Cannon Peak State ------------ > --- POWER ------------ Improved Ion Engine > --- PROPULSION ------- Light Treads Improved Treads > --- UTILITY ---------- Heat Sink Large Storage Unit Hacking Suite > --- WEAPON ----------- Improved Light Cannon Flak Cannon Flak Cannon > --- INVENTORY -------- Light Nuclear Core Light Treads Light Treads Heat Sink Large Storage Unit Hardened Light Armor Plating Hacking Suite Hacking Suite Authchip [R/NC] Authchip [R/Combat] Shotgun Flak Cannon Flak Cannon Rocket Launcher [Rating: 21] Favorites ----------- Power Light Ion Engine Engine Light Ion Engine Power Core Light Nuclear Core Propulsion Light Treads Treads Light Treads Leg Aluminum Leg Utility Large Storage Unit Device Heat Sink Storage Large Storage Unit Hackware Hacking Suite Protection Propulsion Shielding Weapon Light Assault Rifle Energy Gun Medium Laser Ballistic Gun Light Assault Rifle Ballistic Cannon Improved Light Cannon Launcher Rocket Launcher Build | -11 -10 -10 -9 -9 ------- Run | Yrd Mat Min Mat Min Slots Evolved 2 | . . . 2 . Power . | . . . . . Propulsion . | . . . . . Utility 1 | . . . 1 . Weapon 1 | . . . 1 . Parts Attached 56 | 6 25 . 17 8 Power 10 | 1 6 . 2 1 Engine 9 | 1 6 . 2 . Core 1 | . . . . 1 Reactor . | . . . . . Propulsion 16 | 2 9 . 4 1 Treads 12 | 2 7 . 2 1 Leg 4 | . 2 . 2 . Wheel . | . . . . . Hover . | . . . . . Flight . | . . . . . Utility 6 | 1 2 . 3 . Device 1 | . . . 1 . Storage 2 | 1 1 . . . Processor . | . . . . . Hackware 1 | . . . 1 . Protection 2 | . 1 . 1 . Artifact . | . . . . . Weapon 24 | 2 8 . 8 6 Energy Gun 4 | 1 1 . 2 . Energy Cannon . | . . . . . Ballistic Gun 12 | 1 6 . 4 1 Ballistic Cannon 6 | . 1 . 2 3 Launcher 2 | . . . . 2 Special Weapon . | . . . . . Impact Weapon . | . . . . . Slashing Weapon . | . . . . . Piercing Weapon . | . . . . . Special Melee Weapon . | . . . . . Unidentified Prototypes . | . . . . . Parts Lost 10 | . 2 . . 8 Power 2 | . 1 . . 1 Propulsion 3 | . . . . 3 Utility 1 | . . . . 1 Weapon 4 | . 1 . . 3 Highest Loss Streak 8 | . 2 . . 8 To Critical Strikes . | . . . . . Average Slot Usage (%) 95 | . 88 100 99 96 Engine 11 | . 13 14 11 6 Treads 16 | . 25 . 10 21 Leg 8 | . 1 28 11 . Device 5 | . . . 11 11 Storage 12 | . 14 14 11 11 Hackware 3 | . . . 4 10 Protection 5 | . 4 14 6 . Energy Gun 5 | . 4 14 6 . Ballistic Gun 15 | . 19 14 14 9 Ballistic Cannon 8 | . 3 . 11 21 Naked Turns . | . . . . . Heaviest Build 41 | 14 27 27 41 41 Greatest Support 43 | 40 40 20 43 43 Greatest Overweight (x) 10 | . 2 1 1 10 Average Overweight (x) . | . . 1 . . Largest Inventory Capacity 15 | 8 15 15 15 15 Average Capacity 13 | 6 9 15 15 15 Most Carried 15 | 4 12 14 15 15 Average Carried 10 | 1 7 13 12 14 Final Capacity 15 | 8 15 15 15 15 Final Carried 15 | 1 10 14 15 11 Class Distribution -------------------- 28% | Gunner 25% | Scavenger-Mutant 23% | Mutant 17% | Scavenger-Tank 5% | Tank Dominant Class ---------------- Mutant | -10/Materials Scavenger-Mutant | -10/Mines Scavenger-Tank | -9/Materials Gunner | -9/Mines Resources | -11 -10 -10 -9 -9 ----------- Run | Yrd Mat Min Mat Min Matter Collected 1408 | 242 508 62 532 64 Remotely . | . . . . . Salvage Created 1589 | . 549 73 717 250 Parts 116 | . 49 3 46 18 Haulers Intercepted 5 | . 2 . 3 . Recyclers Shooed . | . . . . . Parts Field Recycled . | . . . . . Retrieved Matter . | . . . . . Parts Self-Destructed . | . . . . . Prevented . | . . . . . Kills | -11 -10 -10 -9 -9 ------- Run | Yrd Mat Min Mat Min Combat Hostiles Destroyed 58 | . 16 3 19 20 Guns 27 | . 12 3 11 1 Cannons 23 | . 4 . 8 11 AOE 8 | . . . . 8 Classes Destroyed 10 | . 5 . 2 3 Hauler 5 | . 2 . 3 . Recycler 1 | . 1 . . . Operator 1 | . 1 . . . Watcher 1 | . . . 1 . Swarmer 25 | . 9 2 8 6 Grunt 14 | . 7 1 3 3 Brawler 1 | . . . . 1 Duelist 1 | . . . . 1 Sentry 8 | . . . 8 . Assembled 9 | . . . . 9 Best Kill Streak 11 | . 3 2 5 11 Combat Bots Only 11 | . 3 2 5 11 Max Kills in Single Turn 3 | . 1 1 1 3 Gunslinging . | . . . . . Exploded 3 | . . . . 3 Melee . | . . . . . Uniques/NPCs Destroyed . | . . . . . Combat | -11 -10 -10 -9 -9 -------- Run | Yrd Mat Min Mat Min Hostile Shots Fired 269 | . 120 20 53 76 Missed 71 | . 30 4 17 20 Damage Taken 2838 | . 867 160 409 1402 Core 586 | . 151 30 45 360 Absorbed by Shields . | . . . . . Redirected to Shielding 47 | . 9 14 24 . Core Remaining (%) 63 | 100 . 27 . . Volleys Fired 156 | . 71 13 51 21 Largest 3 | . 2 2 3 3 Hottest 127 | . 70 70 120 127 Shots Fired 358 | . 138 26 141 53 Gun 237 | . 111 26 88 12 Cannon 117 | . 27 . 53 37 Launcher 4 | . . . . 4 Special . | . . . . . Kinetic 291 | . 118 13 111 49 Thermal 63 | . 20 13 30 . Explosive 4 | . . . . 4 Electromagnetic . | . . . . . Robot Hit Streak 12 | . 12 5 7 6 Robot Miss Streak 12 | . 3 2 8 12 Penetration Max . | . . . . . Secondary Targets 2 | . 2 . . . Max Gunslinging Chain 1 | . 1 . . . Shots Hit Robots 217 | . 94 16 79 28 Core Hits 111 | . 34 6 35 36 Critical Kills 3 | . 1 . 2 . Critical Parts Destroyed 1 | . 1 . . . Critical Strikes 9 | . 4 1 4 . Burn 4 | . 1 1 2 . Destroy 4 | . 2 . 2 . Blast 1 | . 1 . . . Melee Attacks . | . . . . . Impact . | . . . . . Slashing . | . . . . . Piercing . | . . . . . Sneak Attacks . | . . . . . Combat Hostiles . | . . . . . Follow-up Attacks . | . . . . . Damage Inflicted 3386 | . 1156 188 1189 853 Guns 1814 | . 828 188 688 110 Cannons 1125 | . 328 . 501 296 Explosions 447 | . . . . 447 Melee . | . . . . . Ramming . | . . . . . Kinetic 2416 | . 957 63 990 406 Thermal 523 | . 199 125 199 . Explosive 447 | . . . . 447 Electromagnetic . | . . . . . Impact . | . . . . . Slashing . | . . . . . Piercing . | . . . . . Highest Corruption . | . . . . . Average Corruption . | . . . . . Corruption Purged . | . . . . . Corruption Blocked . | . . . . . Overload Shots . | . . . . . Overflow Damage . | . . . . . Projectiles . | . . . . . Explosions . | . . . . . Melee . | . . . . . Knockbacks 16 | . 4 . 2 10 Impact . | . . . . . Kinetic 14 | . 4 . 2 8 Secondary 2 | . . . . 2 Self-Inflicted Damage 41 | . . . . 41 Shots 1 | . . . . 1 Rammed . | . . . . . Targets Rammed . | . . . . . Kicked . | . . . . . Crushed . | . . . . . Highest Temperature 189 | . 105 189 33 60 Average Temperature 27 | . 27 75 11 13 Received Heat Transfer 553 | . 276 69 102 106 Siege Activations . | . . . . . Robots Corrupted . | . . . . . Combat Hostiles . | . . . . . Parts Fried . | . . . . . Impact Corruptions . | . . . . . Robots Melted . | . . . . . Combat Hostiles . | . . . . . Parts Melted 4 | . . 2 2 . Heat Transferred 1850 | . 666 444 740 . Parts Sabotaged . | . . . . . Parts Stolen . | . . . . . Parts Stripped . | . . . . . Power Chain Reactions . | . . . . . Alert | -11 -10 -10 -9 -9 ------- Run | Yrd Mat Min Mat Min Peak Influence 368 | . 308 130 368 238 Initial 19 | . . . . 19 Average 103 | . 60 52 151 132 Maximum Alert Level 1 | . 1 . 1 1 Low Security (%) 82 | 100 95 100 70 67 Level 1 17 | . 4 . 29 32 Level 2 . | . . . . . Level 3 . | . . . . . Level 4 . | . . . . . Level 5 . | . . . . . High Security . | . . . . . Max Security . | . . . . . Squads Dispatched 6 | . 3 . 3 . Investigation 3 | . 2 . 1 . Extermination . | . . . . . Reinforcement 3 | . 1 . 2 . Assault . | . . . . . Garrison . | . . . . . Intercept . | . . . . . Searches Triggered . | . . . . . Construction Impeded . | . . . . . Haulers Reinforced . | . . . . . Active Scanning Responses . | . . . . . Cargo Convoy Interrupts . | . . . . . Stealth | -11 -10 -10 -9 -9 --------- Run | Yrd Mat Min Mat Min Distress Signals 5 | . 2 . 3 . Communications Jammed . | . . . . . Distress Signals . | . . . . . Times Spotted 111 | . 32 6 39 34 Peak Tracking Total 11 | . 5 5 5 11 Tactical Retreats 4 | . . 3 1 . Traps | -11 -10 -10 -9 -9 ------- Run | Yrd Mat Min Mat Min Traps Triggered 8 | . 8 . . . Indirectly . | . . . . . Trap Hack Attempts . | . . . . . Triggered . | . . . . . Disarmed . | . . . . . Reprogrammed . | . . . . . Reused . | . . . . . Traps Extracted . | . . . . . Installed 3 | . . . 3 . Triggered . | . . . . . Most Traps Carried 3 | . . 3 3 . Machines | -11 -10 -10 -9 -9 ---------- Run | Yrd Mat Min Mat Min Machines Disabled 2 | . 2 . . . Max in Single Turn 1 | . 1 . . . Machines Repaired . | . . . . . Machines Dismantled . | . . . . . Machines Sabotaged . | . . . . . Overloaded Fab Kills . | . . . . . Hacking | -11 -10 -10 -9 -9 --------- Run | Yrd Mat Min Mat Min Machines Accessed 18 | . 7 . 9 2 Terminals 16 | . 7 . 8 1 Fabricators . | . . . . . Repair Stations . | . . . . . Recycling Units . | . . . . . Scanalyzers 1 | . . . 1 . Garrison Access . | . . . . . Total Hacks 53 | . 24 . 26 3 Successful 36 | . 17 . 17 2 Failed 16 | . 6 . 9 1 Catastrophic 4 | . 1 . 3 . Database Lockouts 1 | . 1 . . . Manual 14 | . 8 . 5 1 Terminals 50 | . 24 . 24 2 Fabricators . | . . . . . Repair Stations . | . . . . . Recycling Units . | . . . . . Scanalyzers 2 | . . . 2 . Garrison Access . | . . . . . Terminal Hacks 33 | . 16 . 15 2 Robot Analysis 1 | . . . 1 . Prototype ID Bank 7 | . 5 . 2 . Open Door 1 | . . . . 1 Emergency Access Points 1 | . . . 1 . Alert Level 10 | . 5 . 5 . Unreport Threat 5 | . 2 . 3 . Locate Traps 4 | . 3 . 1 . Dispatch Records 1 | . . . 1 . Recall Reinforcements 1 | . . . 1 . Registered Components 1 | . 1 . . . Zone Layout 1 | . . . . 1 Fabricator Hacks . | . . . . . Repair Station Hacks . | . . . . . Recycling Unit Hacks . | . . . . . Scanalyzer 2 | . . . 2 . Insert Component 1 | . . . 1 . Analyze 1 | . . . 1 . Garrison Access Hacks . | . . . . . Unauthorized Hacks 1 | . 1 . . . Terminals 1 | . 1 . . . Operators 1 | . 1 . . . Fabricators . | . . . . . Repair Stations . | . . . . . Recycling Units . | . . . . . Scanalyzers . | . . . . . Garrison Access . | . . . . . Data Cores Recovered . | . . . . . Used . | . . . . . Hacking Detections 14 | . 5 . 8 1 Full Trace Events . | . . . . . Feedback Events . | . . . . . Feedback Blocked . | . . . . . Robot Schematics Acquired . | . . . . . Robots Built . | . . . . . Authchips . | . . . . . Time . | . . . . . Total Robot Build Rating . | . . . . . Part Schematics Acquired 1 | . . . 1 . Parts Built . | . . . . . Authchips . | . . . . . Time . | . . . . . Total Part Build Rating . | . . . . . Parts Repaired . | . . . . . Time . | . . . . . Parts Recycled . | . . . . . Recycled Matter . | . . . . . Retrieved Matter . | . . . . . Retrieved Components . | . . . . . Parts Scanalyzed 1 | . . . 1 . Part Schematics Acquired 1 | . . . 1 . Parts Damaged . | . . . . . Bothacking | -11 -10 -10 -9 -9 ------------ Run | Yrd Mat Min Mat Min Used RIF Installer . | . . . . . Robots Hacked . | . . . . . Non-combat . | . . . . . Combat . | . . . . . Robot Hacks Applied . | . . . . . Relay Couplers Released . | . . . . . Fabnet Peak Effective % . | . . . . . Robots Rewired . | . . . . . Allies Hacked . | . . . . . Hacks Repelled . | . . . . . Allies | -11 -10 -10 -9 -9 -------- Run | Yrd Mat Min Mat Min Total Allies 3 | . . 3 . . Largest Group 3 | . . 3 3 . Highest-Rated Group 40 | . . 40 40 . Highest-Rated Ally 16 | . . 16 16 . Total Orders . | . . . . . Ally Attacks 65 | . . . 65 . Total Damage 684 | . . . 684 . Kills 12 | . . . 12 . Allies Corrupted . | . . . . . Allies Melted . | . . . . . Intel | -11 -10 -10 -9 -9 ------- Run | Yrd Mat Min Mat Min Robot Analysis Total 1 | . . . 1 . Derelict Logs Recovered 2 | . . 1 . 1 Drone Launches . | . . . . . Drone Recoveries . | . . . . . Exploration | -11 -10 -10 -9 -9 ------------- Run | Yrd Mat Min Mat Min Turns Passed 4773 | 81 1635 564 1864 629 Spaces Moved 2350 | 48 820 263 906 313 Core 9 | 7 1 . . 1 Treads 1599 | 41 780 . 466 312 Legs 742 | . 39 263 440 . Wheels . | . . . . . Hover . | . . . . . Flight . | . . . . . Fastest Speed 50 | 50 150 190 160 160 Average Speed 169 | 143 161 190 174 163 Slowest Speed 550 | 160 190 190 190 550 Overloaded Moves . | . . . . . Propulsion Burnouts . | . . . . . Robots Hopped . | . . . . . Cave-ins Triggered 1 | . . . . 1 Exploration Rate (%) 62 | 4 93 58 90 69 Regions Visited 4 Branch Regions 2 Pre-discovered Areas 1 | . . . . 1 Known Exits Taken . | . . . . . Unknown Exits Taken 4 | 1 1 1 1 . Scrap Searched 2 | . . 1 . 1 Spaces Dug . | . . . . . Terrain Destroyed 37 | . . . 4 33 Melee . | . . . . . Projectile 4 | . . . 4 . AOE 33 | . . . . 33 Terrain Rammed . | . . . . . Walls Destroyed . | . . . . . Machines Disabled . | . . . . . Actions | -11 -10 -10 -9 -9 --------- Run | Yrd Mat Min Mat Min Total 2866 | 60 1008 304 1103 391 Wait 162 | . 41 25 52 44 Move 2346 | 47 819 262 905 313 Hop . | . . . . . Pick Up 91 | 7 39 4 39 2 Fast Attach . | . . . . . Attach 52 | 6 24 . 17 5 Detach . | . . . . . Swap 4 | . 1 . . 3 Drop 52 | . 13 . 36 3 Fire 156 | . 71 13 51 21 Melee . | . . . . . Ram . | . . . . . Kick . | . . . . . Crush . | . . . . . Escape Stasis . | . . . . . Rewire . | . . . . . Trap 3 | . . . 3 . Miscellaneous . | . . . . . Route ------- -11/Scrapyard -10/Materials (discovered 4 exits: *Mat x3 / [*Min]) -10/Mines -9/Materials (discovered 7 exits: [*Mat x3] / *Min x2 / [*Sto x2]) -9/Mines (discovered 2 exits: [*Mat x2]) History --------- Turn | Location | Event 2 | -11/Scrapyard | Met Revision 17 6 | -11/Scrapyard | Discovered new exit (range 15) 82 | -11/Scrapyard | Entered Materials 248 | -10/Materials | Discovered new exit (range 13) 269 | -10/Materials | Central database locked down 300 | -10/Materials | Build established: Mutant 690 | -10/Materials | Discovered new exit (range 16) 1054 | -10/Materials | Build established: Scavenger-Mutant 1076 | -10/Materials | Discovered new exit (range 14) 1331 | -10/Materials | Core integrity fell below 50% 1388 | -10/Materials | Discovered new exit (range 10) 1641 | -10/Materials | Build established: Mutant 1717 | -10/Materials | Entered Mines 1736 | -10/Mines | Found a hidden stash of uninstalled traps 1759 | -10/Mines | Met a Derelict bent on vengeance 1950 | -10/Mines | Build established: Scavenger-Mutant 2199 | -10/Mines | Discovered new exit (range 3) 2239 | -10/Mines | Assisted by bots powering up and referring to "LRC-V3" 2241 | -10/Mines | Learned Materials emergency access door positions 2281 | -10/Mines | Entered Materials 2281 | -9/Materials | Accompanied by 3 allies 2281 | -9/Materials | Evolved 2 slots: Utility x1, Weapon x1 2577 | -9/Materials | Build established: Scavenger-Tank 2584 | -9/Materials | Discovered new exit (range 16) 2680 | -9/Materials | Discovered new exit (range 15) 3228 | -9/Materials | Discovered new exit (range 16) 3629 | -9/Materials | Discovered new exit (range 10) 3629 | -9/Materials | Discovered new exit (range 14) 3654 | -9/Materials | Build established: Gunner 3768 | -9/Materials | Discovered new exit (range 15) 4060 | -9/Materials | Discovered new exit (range 10) 4145 | -9/Materials | Entered Mines 4167 | -9/Mines | Discovered new exit (range 6) 4177 | -9/Mines | Received a Rocket Launcher from a helpful Derelict 4497 | -9/Mines | Found the Drone Emporium 4506 | -9/Mines | Found Prototype Device 4553 | -9/Mines | Discovered new exit (range 14) 4715 | -9/Mines | Assembled infested the area 4720 | -9/Mines | Assisted by a Guerilla fighting off Assembled 4765 | -9/Mines | Core integrity fell below 50% 4767 | -9/Mines | Destroyed 11 combat bots 4769 | -9/Mines | Core integrity fell below 20% 4775 | -9/Mines | Crushed by falling debris 4775 | -9/Mines | Smashed by cave-in Last Messages --------------- 04758_ S-10 Pest: "SECOND INTRUDER APPROACHING. ELIMINATE." 04758_ as-21258 destroyed. 04759_ The unstable cave ceiling collapses. 04759_ Rocket Launcher destroyed. 04761_ Flak Cannon destroyed. 04761_ as-13464 destroyed. 04762_ Lgt. Treads destroyed. 04766_ Hacking Suite destroyed. 04766_ as-78311 destroyed. 04767_ as-65436 destroyed. 04768_ The unstable cave ceiling collapses. 04770_ S-10 Pest destroyed. 04771_ The unstable cave ceiling collapses. 04772_ S-10 Pest destroyed. 04772_ Lgt. Treads destroyed. 04774_ The unstable cave ceiling collapses. 04774_ S-10 Pest destroyed. 04775_ The unstable cave ceiling collapses. 04775_ Crushed by falling debris. Map ----- +----------------------------------------------------+ | | | | | | | | | | | | | | | ?????????????????????????????????????????????????? | | ?????????????????????????????????????????????????? | | ?????????????????????????????????????????????????? | | ?????????????????????????????????????????????????? | | ?????????????????????????????????????????????????? | | ?????????????????????????????????????????????????? | | ????????????????????????#####?????????????????#### | | ????????????????????????# ???????????????# | | ????????????????????????# """#?????????###### ## | | ????????????????????????# """#????????## ## ## | | ????????????????????????# """#????????# # | | ????????????????????????# #????????# """ ## # | | ???????????????????????## #???????## """ #? # | | ??????????????????????## ##?###### """ ## # | | ?????????????????????## ### | | ?????????????????????# ## | | ?????????????????????# ### ### | | ?????????????????????# #?## #?? | | ????????????????????## @ #??## ##?# | | ???????????????###### #???##### #?## | | ??????????? a #???????## ### | | ???????????????###### # #????????# ### | | ????????????????????## #????????# #?# | | ?????????????????????## [ #????????## #?? | | ??????????????????????## %=d #?????????# ##? | | ???????????????????????# [%d #?????????## #? | | ???????????????????????# =*% ###??????????## ## | | ?????????????????????# # = ###????????????# # | | ?????????????????????# ###?????????????# | | ?????????????????????#####u #?????????????# # | | ????????????????######### u #?????????????## ## | | ????????????? %##??????????????## #? | | ????????????????######## #????????????????# #? | | ??????????????????????## ##?????????????### ## | | ??????????????????????# ##????????????# ## | | ??????????????????????# #????????????# #### | | ??????????????????????## " ############## #??# | | ???????????????????????##"%" #??# | | ????????????????????????##" #??# | | ?????????????????????????# ####################??# | | ?????????????????????????# ??????????????????????# | | ????????????????????????? ??????????????????????# | | ???????????????????????? ??????????????????????# | +----------------------------------------------------+ Best States ------------- Heat Dissipation 38 Energy Generation 14 Energy Capacity 265 Matter Stores 300 Matter Capacity 300 Sight Range 16 Terrain Scan Density 10 Propulsion Shielding 33 Evasion (%) 40 Recoil Reduction 2 Offensive Hacking 10 Authchip Count 3 Item Schematics ----------------- Hacking Suite | -9/Materials | Scanalyzed Robot Schematics ------------------ None Fabricated ------------ Nothing Alien Tech Used ----------------- None Achievements -------------- None Challenges ------------ None Game ------ Seed LightRocketLegs Manual? 0 Play Time 00:30:38 Cumulative 58.9 hours Start 2024.04.14 @ 23:01:27 End 2024.04.14 @ 23:31:50 Sessions 1 Manual Loads 0 Difficulty Rogue Special Mode None Game No. 53 Rogue 53 Adventurer 0 Explorer 0 Win Type - Total 0 Types 0/0/0/0/0/0/0/0/0 Lore% 37 Gallery% 46 Achievement% 29 Wizard Run 0 Options --------- Layout 1 ASCII 0 Keyboard 0 Movement Numpad Keybinds 0 Fullscreen 1 Font 24/Smallcaps Map View 50x35 Zoom Use 1% Tactical HUD 1 Map Filters NONE Filters NONE Steam 1 RUN: 2deff312-7f07-4591-917e-5d4b2a2bc690